[Event "Philip Hogarty Memorial IM 2019"]
[Site "Stillorgan"]
[Date "2019.01.04"]
[Round "5"]
[White "O`Gorman, Tom"]
[Black "Sodoma, Jan"]
[Result "0-1"]
[ECO "C96"]
[WhiteElo "2153"]
[BlackElo "2324"]
[Annotator "ChessBase"]
[PlyCount "124"]
[EventDate "2019.01.02"]
[EventType "tourn"]
[EventCountry "IRL"]
[SourceTitle "playchess.com"]
[Source "ChessBase"]
[SourceQuality "1"]
[TimeControl "5400+30"]

1. e4 {[%emt 0:00:00]} e5 {[%emt 0:00:00]} 2. Nf3 {[%emt 0:00:00]} Nc6 {[%emt 0:00:00]} 3. Bb5 {[%emt 0:00:00]} a6 {[%emt 0:00:00]} 4. Ba4 {[%emt 0:00:00]} Nf6 {[%emt 0:00:05]} 5. O-O {[%emt 0:00:00]} Be7 {[%emt 0:00:08]} 6. Re1 {[%emt 0:00:01]} b5 {[%emt 0:00:08]} 7. Bb3 {[%emt 0:00:04]} O-O {[%emt 0:00:39]} 8. c3 {[%emt 0:00:03]} d6 {[%emt 0:00:35]} 9. h3 {[%emt 0:00:05]} Na5 {[%emt 0:00:08]} 10. Bc2 {[%emt 0:00:06]} c5 {[%emt 0:00:06]} 11. d4 {[%emt 0:00:06]} Nd7 {[%emt 0:00:51]} 12. Nbd2 {[%emt 0:00:37]} exd4 {[%emt 0:00:23]} 13. cxd4 {[%emt 0:00:08]} Re8 {[%emt 0:00:05]} 14. Nf1 {[%emt 0:01:28]} Bb7 {[%emt 0:00:23]} 15. Ng3 {[%emt 0:00:52]} g6 {[%emt 0:00:07]} 16. d5 {[%emt 0:05:11]} Nc4 {[%emt 0:03:32]} 17. Nh2 {[%emt 0:03:49]} Bh4 {[%emt 0:01:41]} 18. Ng4 {[%emt 0:06:53]} Nce5 {[%emt 0:10:24]} 19. Nh6+ {[%emt 0:08:52]} Kh8 {[%emt 0:05:25]} 20. Qd2 {[%emt 0:06:52]} Qe7 {[%emt 0:11:24]} 21. Kh2 {[%emt 0:03:39]} Qf8 {[%emt 0:02:29]} 22. Ng4 {[%emt 0:08:10]} Nxg4+ {[%emt 0:02:18]} 23. hxg4 {[%emt 0:00:08]} f6 {[%emt 0:02:32]} 24. Qh6 {[%emt 0:15:30]} Qxh6 {[%emt 0:01:40]} 25. Bxh6 {[%emt 0:00:08]} Ne5 {[%emt 0:00:22]} 26. Kh3 {[%emt 0:04:00]} Bxg3 {[%emt 0:04:33]} 27. Kxg3 {[%emt 0:00:17]} g5 {[%emt 0:02:42]} 28. f4 {[%emt 0:01:26]} gxf4+ {[%emt 0:13:15]} 29. Bxf4 {[%emt 0:01:48]} Rg8 {[%emt 0:00:14]} 30. Bxe5 {[%emt 0:00:05]} fxe5 {[%emt 0:00:10]} 31. Bd1 {[%emt 0:00:30]} Raf8 {[%emt 0:04:21]} 32. Rh1 {[%emt 0:08:12]} Rg6 {[%emt 0:03:25]} 33. Bf3 {[%emt 0:01:36]} Bc8 {[%emt 0:01:12]} 34. Rh5 {[%emt 0:02:25]} h6 {[%emt 0:01:50]} 35. b4 {[%emt 0:13:54]} Rf4 {[%emt 0:05:41]} 36. bxc5 {[%emt 0:01:25]} Bxg4 {[%emt 0:00:15]} 37. Bxg4 {[%emt 0:00:19]} Rfxg4+ {[%emt 0:03:26]} 38. Kh3 {[%emt 0:01:14]} Rg3+ {[%emt 0:04:25]} 39. Kh2 {[%emt 0:00:07]} Rxg2+ {[%emt 0:00:04]} 40. Kh1 {[%emt 0:00:04]} dxc5 {[%emt 0:04:17]} 41. Rd1 {[%emt 0:02:39]} R2g5 {[%emt 0:02:34]} 42. Rxg5 {[%emt 0:00:07]} Rxg5 {[%emt 0:01:08]} 43. d6 {[%emt 0:00:02]} Rg8 {[%emt 0:00:10]} 44. Rd5 {[%emt 0:00:01]} Rd8 {[%emt 0:00:17]} 45. Rxe5 {[%emt 0:01:11]} Rxd6 {[%emt 0:00:18]} 46. Rxc5 {[%emt 0:00:04]} Kg7 {[%emt 0:04:28]} 47. Kg2 {[%emt 0:01:26]} Rd2+ {[%emt 0:00:32]} 48. Kf3 {[%emt 0:08:26]} Rxa2 {[%emt 0:00:08]} 49. Kf4 {[%emt 0:00:00]} b4 {[%emt 0:05:06]} 50. Rc7+ {[%emt 0:00:00]} Kf8 {[%emt 0:00:33]} 51. Rb7 {[%emt 0:00:00]} a5 {[%emt 0:00:10]} 52. Kf5 {[%emt 0:00:00]} h5 {[%emt 0:01:06]} 53. Kf6 {[%emt 0:00:00]} Rf2+ {[%emt 0:00:24]} 54. Kg5 {[%emt 0:00:00]} h4 {[%emt 0:00:31]} 55. Kxh4 {[%emt 0:00:00]} Rf4+ {[%emt 0:01:07]} 56. Kg5 {[%emt 0:00:00]} Rxe4 {[%emt 0:00:15]} 57. Kf6 {[%emt 0:00:00]} Ke8 {[%emt 0:00:44]} 58. Ra7 {[%emt 0:00:00]} b3 {[%emt 0:00:44]} 59. Rxa5 {[%emt 0:00:47]} Rb4 {[%emt 0:00:06]} 60. Ra1 {[%emt 0:01:16]} b2 {[%emt 0:00:09]} 61. Rb1 {[%emt 0:00:06]} Kd7 {[%emt 0:00:04]} 62. Ke5 {[%emt 0:00:05]} Kc6 {[%emt 0:00:06]} 0-1

[Event "Philip Hogarty Memorial IM 2019"]
[Site "Stillorgan"]
[Date "2019.01.05"]
[Round "6"]
[White "Sodoma, Jan"]
[Black "Wall, Gavin"]
[Result "1/2-1/2"]
[ECO "A81"]
[WhiteElo "2324"]
[BlackElo "2330"]
[Annotator "NA"]
[PlyCount "46"]
[EventDate "2019.01.02"]
[EventType "tourn"]
[EventCountry "IRL"]
[SourceTitle "playchess.com"]
[Source "ChessBase"]
[SourceQuality "1"]
[TimeControl "5400+30"]

1. d4 {[%emt 0:00:00]} f5 {[%emt 0:00:00]} 2. g3 {[%emt 0:00:00]} Nf6 {[%emt 0:00:00]} 3. Bg2 {[%emt 0:00:01]} g6 {[%emt 0:00:00]} 4. b3 {[%emt 0:00:08]} Bg7 {[%emt 0:00:00]} 5. Bb2 {[%emt 0:00:08]} O-O {[%emt 0:00:00]} 6. Nd2 {[%emt 0:01:16]} d6 {[%emt 0:03:58]} 7. Ngf3 {[%emt 0:01:00]} Nc6 {[%emt 0:00:17]} 8. O-O {[%emt 0:00:13]} Qe8 {[%emt 0:01:15]} 9. Re1 {[%emt 0:01:40]} e5 {[%emt 0:00:45]} 10. dxe5 {[%emt 0:00:22]} dxe5 {[%emt 0:02:34]} 11. e4 {[%emt 0:00:17]} f4 {[%emt 0:00:08]} 12. b4 {[%emt 0:26:51]} fxg3 {[%emt 0:03:56]} 13. fxg3 {[%emt 0:03:05]} Qe7 {[%emt 0:01:35]} 14. a3 {[%emt 0:03:18]} a5 {[%emt 0:00:02]} 15. c3 {[%emt 0:10:54]} Bh6 {[%emt 0:10:30]} 16. Qe2 {[%emt 0:01:28]} Be6 {[%emt 0:06:28]} 17. Kh1 {[%emt 0:03:09]} Ng4 {[%emt 0:03:34]} 18. Nf1 {[%emt 0:02:30]} Qf7 {[%emt 0:00:24]} 19. Bc1 {[%emt 0:04:19]} Bc4 {[%emt 0:06:56]} 20. Qb2 {[%emt 0:00:02]} Bxc1 {[%emt 0:11:30]} 21. Raxc1 {[%emt 0:00:23]} Bxf1 {[%emt 0:05:19]} 22. Rxf1 {[%emt 0:00:11]} Qc4 {[%emt 0:00:43]} 23. Rfe1 {[%emt 0:03:51]} Kh8 {[%emt 0:12:42]} 1/2-1/2

[Event "Philip Hogarty Memorial IM 2019"]
[Site "Stillorgan"]
[Date "2019.01.05"]
[Round "6"]
[White "De Verdier, Michael"]
[Black "Li, Henry"]
[Result "1-0"]
[ECO "E70"]
[WhiteElo "2277"]
[BlackElo "2193"]
[Annotator "NA"]
[PlyCount "77"]
[EventDate "2019.01.02"]
[EventType "tourn"]
[EventCountry "IRL"]
[SourceTitle "playchess.com"]
[Source "ChessBase"]
[SourceQuality "1"]
[TimeControl "5400+30"]

1. c4 {[%emt 0:00:00]} Nf6 {[%emt 0:00:00]} 2. Nc3 {[%emt 0:00:00]} g6 {[%emt 0:00:00]} 3. e4 {[%emt 0:00:12]} d6 {[%emt 0:00:05]} 4. d4 {[%emt 0:00:07]} Bg7 {[%emt 0:00:07]} 5. Bd3 {[%emt 0:00:45]} O-O {[%emt 0:00:52]} 6. Nge2 {[%emt 0:00:34]} Nc6 {[%emt 0:00:18]} 7. O-O {[%emt 0:00:27]} e5 {[%emt 0:01:33]} 8. d5 {[%emt 0:03:58]} Nd4 {[%emt 0:01:01]} 9. Nxd4 {[%emt 0:00:17]} exd4 {[%emt 0:00:02]} 10. Ne2 {[%emt 0:00:31]} Re8 {[%emt 0:00:19]} 11. f3 {[%emt 0:00:08]} c5 {[%emt 0:02:33]} 12. Bg5 {[%emt 0:01:11]} a6 {[%emt 0:02:58]} 13. Qd2 {[%emt 0:06:57]} Rb8 {[%emt 0:02:19]} 14. Ng3 {[%emt 0:04:55]} b5 {[%emt 0:02:00]} 15. b3 {[%emt 0:01:44]} Qb6 {[%emt 0:07:14]} 16. Rab1 {[%emt 0:09:31]} Nd7 {[%emt 0:06:01]} 17. f4 {[%emt 0:01:38]} Bf6 {[%emt 0:04:45]} 18. Bxf6 {[%emt 0:12:19]} Nxf6 {[%emt 0:00:02]} 19. h3 {[%emt 0:00:33]} Qc7 {[%emt 0:05:00]} 20. Rbe1 {[%emt 0:01:49]} Nd7 {[%emt 0:03:54]} 21. e5 {[%emt 0:14:56]} dxe5 {[%emt 0:05:33]} 22. f5 {[%emt 0:01:13]} Qd8 {[%emt 0:10:16]} 23. Qh6 {[%emt 0:10:35]} Rb6 {[%emt 0:05:57]} 24. d6 {[%emt 0:04:40]} e4 {[%emt 0:13:46]} 25. Nxe4 {[%emt 0:01:49]} Rxe4 {[%emt 0:00:33]} 26. fxg6 {[%emt 0:01:21]} hxg6 {[%emt 0:02:44]} 27. Rxe4 {[%emt 0:00:54]} Qf8 {[%emt 0:00:23]} 28. Qf4 {[%emt 0:01:33]} Rxd6 {[%emt 0:00:42]} 29. Rfe1 {[%emt 0:01:46]} Nf6 {[%emt 0:03:08]} 30. Re7 {[%emt 0:00:16]} Rb6 {[%emt 0:01:38]} 31. g4 {[%emt 0:04:55]} b4 {[%emt 0:09:23]} 32. Qe5 {[%emt 0:04:16]} Bxg4 {[%emt 0:05:18]} 33. hxg4 {[%emt 0:01:39]} Nxg4 {[%emt 0:00:01]} 34. Qxc5 {[%emt 0:03:09]} Re6 {[%emt 0:01:47]} 35. R1xe6 {[%emt 0:02:10]} fxe6 {[%emt 0:00:06]} 36. Qxd4 {[%emt 0:00:06]} Qxe7 {[%emt 0:00:12]} 37. Qxg4 {[%emt 0:00:01]} g5 {[%emt 0:00:14]} 38. Kg2 {[%emt 0:00:38]} Qf6 {[%emt 0:00:39]} 39. Qe4 {[%emt 0:00:39]} 1-0

[Event "Philip Hogarty Memorial IM 2019"]
[Site "Stillorgan"]
[Date "2019.01.05"]
[Round "6"]
[White "Nilssen, Ellen Fredericia"]
[Black "Melaugh, Shane"]
[Result "0-1"]
[ECO "A85"]
[WhiteElo "2181"]
[BlackElo "2169"]
[Annotator "NA"]
[PlyCount "82"]
[EventDate "2019.01.02"]
[EventType "tourn"]
[EventCountry "IRL"]
[SourceTitle "playchess.com"]
[Source "ChessBase"]
[SourceQuality "1"]
[TimeControl "5400+30"]

1. d4 {[%emt 0:00:00]} e6 {[%emt 0:00:00]} 2. c4 {[%emt 0:00:00]} f5 {[%emt 0:00:00]} 3. Nc3 {[%emt 0:01:23]} Nf6 {[%emt 0:00:00]} 4. Nf3 {[%emt 0:01:26]} Bb4 {[%emt 0:00:05]} 5. Qc2 {[%emt 0:01:22]} b6 {[%emt 0:00:10]} 6. Bf4 {[%emt 0:02:00]} Bb7 {[%emt 0:00:06]} 7. h3 {[%emt 0:04:17]} O-O {[%emt 0:03:48]} 8. e3 {[%emt 0:01:00]} d6 {[%emt 0:00:13]} 9. Bh2 {[%emt 0:04:21]} Nbd7 {[%emt 0:00:52]} 10. Bd3 {[%emt 0:00:13]} Qe8 {[%emt 0:01:12]} 11. O-O-O {[%emt 0:00:57]} Bxc3 {[%emt 0:01:15]} 12. Qxc3 {[%emt 0:01:43]} Ne4 {[%emt 0:00:09]} 13. Qc2 {[%emt 0:05:59]} Rc8 {[%emt 0:06:15]} 14. Ng1 {[%emt 0:08:59]} Nef6 {[%emt 0:03:33]} 15. f3 {[%emt 0:01:05]} d5 {[%emt 0:00:27]} 16. c5 {[%emt 0:06:06]} bxc5 {[%emt 0:01:58]} 17. dxc5 {[%emt 0:00:09]} Bc6 {[%emt 0:01:12]} 18. Ba6 {[%emt 0:01:36]} Qe7 {[%emt 0:03:15]} 19. Bxc8 {[%emt 0:01:06]} Rxc8 {[%emt 0:00:04]} 20. Ne2 {[%emt 0:05:16]} Nxc5 {[%emt 0:00:56]} 21. b4 {[%emt 0:01:54]} Na6 {[%emt 0:02:58]} 22. Qxc6 {[%emt 0:00:41]} Nxb4 {[%emt 0:00:06]} 23. Qa4 {[%emt 0:01:38]} c5 {[%emt 0:02:17]} 24. a3 {[%emt 0:05:50]} Nc6 {[%emt 0:00:32]} 25. Kd2 {[%emt 0:01:27]} Nd7 {[%emt 0:00:18]} 26. Ke1 {[%emt 0:01:37]} Nb6 {[%emt 0:00:03]} 27. Qf4 {[%emt 0:03:32]} Nc4 {[%emt 0:01:57]} 28. h4 {[%emt 0:05:20]} h6 {[%emt 0:02:45]} 29. h5 {[%emt 0:01:01]} e5 {[%emt 0:01:12]} 30. Qxf5 {[%emt 0:01:20]} Rf8 {[%emt 0:04:04]} 31. Qd3 {[%emt 0:00:15]} Rd8 {[%emt 0:00:09]} 32. Rb1 {[%emt 0:02:49]} Qh4+ {[%emt 0:00:25]} 33. Ng3 {[%emt 0:04:00]} e4 {[%emt 0:00:43]} 34. Qe2 {[%emt 0:03:55]} N6e5 {[%emt 0:00:21]} 35. Kf1 {[%emt 0:02:05]} Rf8 {[%emt 0:08:22]} 36. f4 {[%emt 0:08:17]} Ng4 {[%emt 0:00:25]} 37. Kg1 {[%emt 0:00:05]} Ngxe3 {[%emt 0:05:16]} 38. Nf1 {[%emt 0:00:22]} Nf5 {[%emt 0:01:37]} 39. Rd1 {[%emt 0:00:40]} Nd4 {[%emt 0:00:30]} 40. Qf2 {[%emt 0:01:01]} Qxh5 {[%emt 0:00:05]} 41. Rc1 {[%emt 0:02:18]} Ne2+ {[%emt 0:00:07]} 0-1

[Event "Philip Hogarty Memorial IM 2019"]
[Site "Stillorgan"]
[Date "2019.01.05"]
[Round "6"]
[White "O`Gorman, Tom"]
[Black "Delaney, Killian"]
[Result "1-0"]
[ECO "B32"]
[WhiteElo "2153"]
[BlackElo "2201"]
[Annotator "NA"]
[PlyCount "73"]
[EventDate "2019.01.02"]
[EventType "tourn"]
[EventCountry "IRL"]
[SourceTitle "playchess.com"]
[Source "ChessBase"]
[SourceQuality "1"]
[TimeControl "5400+30"]

1. e4 {[%emt 0:00:00]} c5 {[%emt 0:00:00]} 2. Nf3 {[%emt 0:00:00]} Nc6 {[%emt 0:00:00]} 3. d4 {[%emt 0:00:00]} cxd4 {[%emt 0:00:00]} 4. Nxd4 {[%emt 0:00:00]} e5 {[%emt 0:00:00]} 5. Nb5 {[%emt 0:00:06]} a6 {[%emt 0:00:01]} 6. Nd6+ {[%emt 0:00:07]} Bxd6 {[%emt 0:00:06]} 7. Qxd6 {[%emt 0:00:06]} Qf6 {[%emt 0:00:03]} 8. Qd1 {[%emt 0:01:59]} Qg6 {[%emt 0:01:18]} 9. Nc3 {[%emt 0:01:43]} d5 {[%emt 0:00:10]} 10. Nxd5 {[%emt 0:07:57]} Qxe4+ {[%emt 0:01:25]} 11. Be3 {[%emt 0:02:08]} Nd4 {[%emt 0:00:12]} 12. Nc7+ {[%emt 0:06:11]} Ke7 {[%emt 0:00:18]} 13. Qd3 {[%emt 0:09:37]} Nxc2+ {[%emt 0:30:09]} 14. Kd2 {[%emt 0:00:13]} Qxd3+ {[%emt 0:00:09]} 15. Bxd3 {[%emt 0:00:09]} Nxe3 {[%emt 0:00:03]} 16. Nxa8 {[%emt 0:00:49]} Nxg2 {[%emt 0:05:47]} 17. Rac1 {[%emt 0:01:31]} Nf6 {[%emt 0:05:46]} 18. Nb6 {[%emt 0:03:03]} Be6 {[%emt 0:00:16]} 19. Rc7+ {[%emt 0:03:47]} Kd6 {[%emt 0:00:06]} 20. Rhc1 {[%emt 0:00:07]} e4 {[%emt 0:12:30]} 21. Bf1 {[%emt 0:07:54]} Nh4 {[%emt 0:06:15]} 22. Rxb7 {[%emt 0:01:21]} Nf3+ {[%emt 0:00:21]} 23. Kd1 {[%emt 0:00:26]} Ke5 {[%emt 0:10:25]} 24. Bxa6 {[%emt 0:03:56]} Rd8+ {[%emt 0:00:53]} 25. Kc2 {[%emt 0:01:16]} Rd2+ {[%emt 0:02:13]} 26. Kb1 {[%emt 0:06:01]} Rxf2 {[%emt 0:00:06]} 27. Na4 {[%emt 0:02:08]} Nd5 {[%emt 0:03:06]} 28. Nc5 {[%emt 0:08:03]} Rxh2 {[%emt 0:05:04]} 29. a4 {[%emt 0:12:11]} Bf5 {[%emt 0:03:29]} 30. a5 {[%emt 0:01:08]} e3+ {[%emt 0:00:08]} 31. Bd3 {[%emt 0:00:04]} e2 {[%emt 0:01:35]} 32. Bxf5 {[%emt 0:00:55]} Kxf5 {[%emt 0:00:16]} 33. Rxf7+ {[%emt 0:01:13]} Nf6 {[%emt 0:00:41]} 34. a6 {[%emt 0:00:50]} Rh4 {[%emt 0:04:48]} 35. Re7 {[%emt 0:07:56]} e1=Q {[%emt 0:07:08]} 36. Rexe1 {[%emt 0:01:02]} Nxe1 {[%emt 0:00:08]} 37. a7 {[%emt 0:00:34]} 1-0

[Event "Philip Hogarty Memorial IM 2019"]
[Site "Stillorgan"]
[Date "2019.01.05"]
[Round "7"]
[White "Wall, Gavin"]
[Black "Nilssen, Ellen Fredericia"]
[Result "1-0"]
[ECO "C43"]
[WhiteElo "2330"]
[BlackElo "2181"]
[Annotator "NA"]
[PlyCount "57"]
[EventDate "2019.01.02"]
[EventType "tourn"]
[EventCountry "IRL"]
[SourceTitle "playchess.com"]
[Source "ChessBase"]
[SourceQuality "1"]
[TimeControl "5400+30"]

1. e4 {[%emt 0:00:00]} e5 {[%emt 0:00:00]} 2. Nf3 {[%emt 0:00:00]} Nf6 {[%emt 0:00:00]} 3. d4 {[%emt 0:00:35]} exd4 {[%emt 0:02:33]} 4. e5 {[%emt 0:00:22]} Nd5 {[%emt 0:02:28]} 5. Qxd4 {[%emt 0:01:37]} Nb6 {[%emt 0:00:09]} 6. Bf4 {[%emt 0:02:47]} Nc6 {[%emt 0:00:09]} 7. Qe4 {[%emt 0:01:41]} Qe7 {[%emt 0:01:29]} 8. Nc3 {[%emt 0:01:49]} Qb4 {[%emt 0:01:57]} 9. O-O-O {[%emt 0:00:05]} Qxe4 {[%emt 0:01:40]} 10. Nxe4 {[%emt 0:00:02]} Be7 {[%emt 0:02:56]} 11. c4 {[%emt 0:13:12]} d6 {[%emt 0:09:33]} 12. exd6 {[%emt 0:01:54]} cxd6 {[%emt 0:05:12]} 13. Nxd6+ {[%emt 0:00:53]} Bxd6 {[%emt 0:00:13]} 14. Bxd6 {[%emt 0:00:21]} Be6 {[%emt 0:00:40]} 15. Ng5 {[%emt 0:02:38]} O-O-O {[%emt 0:05:48]} 16. Nxe6 {[%emt 0:00:03]} fxe6 {[%emt 0:00:10]} 17. g3 {[%emt 0:00:39]} Rhe8 {[%emt 0:02:23]} 18. b3 {[%emt 0:01:57]} Na8 {[%emt 0:00:11]} 19. Bh3 {[%emt 0:00:15]} Rd7 {[%emt 0:00:56]} 20. Rhe1 {[%emt 0:00:08]} Nd8 {[%emt 0:00:07]} 21. b4 {[%emt 0:10:35]} Nc7 {[%emt 0:00:28]} 22. b5 {[%emt 0:00:30]} g6 {[%emt 0:03:26]} 23. a4 {[%emt 0:00:41]} Rf7 {[%emt 0:00:18]} 24. f4 {[%emt 0:00:19]} Rd7 {[%emt 0:00:18]} 25. c5 {[%emt 0:02:02]} Rf7 {[%emt 0:00:11]} 26. Kc2 {[%emt 0:02:18]} Rd7 {[%emt 0:00:08]} 27. Kb3 {[%emt 0:00:20]} Rf7 {[%emt 0:00:06]} 28. b6 {[%emt 0:00:26]} axb6 {[%emt 0:00:07]} 29. cxb6 {[%emt 0:00:03]} 1-0

[Event "Philip Hogarty Memorial IM 2019"]
[Site "Stillorgan"]
[Date "2019.01.05"]
[Round "7"]
[White "Delaney, Killian"]
[Black "Sodoma, Jan"]
[Result "0-1"]
[ECO "A19"]
[WhiteElo "2201"]
[BlackElo "2324"]
[Annotator "NA"]
[PlyCount "40"]
[EventDate "2019.01.02"]
[EventType "tourn"]
[EventCountry "IRL"]
[SourceTitle "playchess.com"]
[Source "ChessBase"]
[SourceQuality "1"]
[TimeControl "5400+30"]

1. c4 {[%emt 0:00:00]} Nf6 {[%emt 0:00:00]} 2. Nc3 {[%emt 0:00:00]} e6 {[%emt 0:00:28]} 3. e4 {[%emt 0:00:03]} c5 {[%emt 0:00:39]} 4. e5 {[%emt 0:02:46]} Ng8 {[%emt 0:00:17]} 5. Nf3 {[%emt 0:00:04]} Nc6 {[%emt 0:00:14]} 6. d4 {[%emt 0:00:05]} cxd4 {[%emt 0:01:49]} 7. Nxd4 {[%emt 0:00:06]} Nxe5 {[%emt 0:06:55]} 8. Ndb5 {[%emt 0:00:18]} d6 {[%emt 0:10:44]} 9. c5 {[%emt 0:03:59]} a6 {[%emt 0:06:47]} 10. cxd6 {[%emt 0:09:58]} axb5 {[%emt 0:00:43]} 11. Nxb5 {[%emt 0:00:05]} f6 {[%emt 0:09:29]} 12. f4 {[%emt 0:02:52]} Nc6 {[%emt 0:03:15]} 13. f5 {[%emt 0:04:35]} Kf7 {[%emt 0:04:50]} 14. Qh5+ {[%emt 0:02:35]} g6 {[%emt 0:00:20]} 15. fxg6+ {[%emt 0:00:04]} Kg7 {[%emt 0:00:27]} 16. gxh7 {[%emt 0:04:20]} Rxh7 {[%emt 0:00:21]} 17. Qg4+ {[%emt 0:00:08]} Kh8 {[%emt 0:00:24]} 18. Qg3 {[%emt 0:00:06]} Nh6 {[%emt 0:02:04]} 19. Bd3 {[%emt 0:01:32]} Nf5 {[%emt 0:00:40]} 20. Qg6 {[%emt 0:00:18]} Ne5 {[%emt 0:02:43]} 0-1

[Event "Philip Hogarty Memorial IM 2019"]
[Site "Stillorgan"]
[Date "2019.01.05"]
[Round "7"]
[White "Li, Henry"]
[Black "O`Gorman, Tom"]
[Result "1-0"]
[ECO "B99"]
[WhiteElo "2193"]
[BlackElo "2153"]
[Annotator "NA"]
[PlyCount "57"]
[EventDate "2019.01.02"]
[EventType "tourn"]
[EventCountry "IRL"]
[SourceTitle "playchess.com"]
[Source "ChessBase"]
[SourceQuality "1"]
[TimeControl "5400+30"]

1. e4 {[%emt 0:00:18]} c5 {[%emt 0:00:00]} 2. Nf3 {[%emt 0:00:42]} d6 {[%emt 0:00:00]} 3. d4 {[%emt 0:00:13]} cxd4 {[%emt 0:00:00]} 4. Nxd4 {[%emt 0:00:07]} Nf6 {[%emt 0:00:00]} 5. Nc3 {[%emt 0:00:17]} a6 {[%emt 0:00:00]} 6. Bg5 {[%emt 0:00:29]} e6 {[%emt 0:00:00]} 7. f4 {[%emt 0:00:35]} Be7 {[%emt 0:00:05]} 8. Qf3 {[%emt 0:00:34]} Qc7 {[%emt 0:00:05]} 9. O-O-O {[%emt 0:00:31]} Nbd7 {[%emt 0:00:05]} 10. f5 {[%emt 0:02:43]} e5 {[%emt 0:02:10]} 11. Nde2 {[%emt 0:00:30]} b5 {[%emt 0:00:54]} 12. Bxf6 {[%emt 0:00:10]} Nxf6 {[%emt 0:00:08]} 13. Nd5 {[%emt 0:00:21]} Nxd5 {[%emt 0:01:00]} 14. exd5 {[%emt 0:00:08]} Bd7 {[%emt 0:17:29]} 15. Ng3 {[%emt 0:00:38]} Rc8 {[%emt 0:01:09]} 16. Bd3 {[%emt 0:02:19]} a5 {[%emt 0:02:23]} 17. Nh5 {[%emt 0:03:11]} g6 {[%emt 0:15:43]} 18. Ng7+ {[%emt 0:20:16]} Kf8 {[%emt 0:02:04]} 19. fxg6 {[%emt 0:02:13]} hxg6 {[%emt 0:02:24]} 20. Ne6+ {[%emt 0:00:48]} Bxe6 {[%emt 0:00:08]} 21. dxe6 {[%emt 0:00:04]} f6 {[%emt 0:03:19]} 22. Bxg6 {[%emt 0:00:46]} Qc4 {[%emt 0:05:23]} 23. Kb1 {[%emt 0:02:36]} Rd8 {[%emt 0:07:52]} 24. Rd5 {[%emt 0:05:19]} a4 {[%emt 0:08:48]} 25. Bd3 {[%emt 0:02:27]} Qc8 {[%emt 0:01:26]} 26. Qf5 {[%emt 0:04:17]} b4 {[%emt 0:00:34]} 27. g4 {[%emt 0:02:47]} Rg8 {[%emt 0:01:49]} 28. Rf1 {[%emt 0:02:13]} Qc6 {[%emt 0:06:22]} 29. Qh7 {[%emt 0:01:15]} 1-0

[Event "Philip Hogarty Memorial IM 2019"]
[Site "Stillorgan"]
[Date "2019.01.05"]
[Round "7"]
[White "Melaugh, Shane"]
[Black "Brady, Stephen"]
[Result "0-1"]
[ECO "A36"]
[WhiteElo "2169"]
[BlackElo "2314"]
[Annotator "NA"]
[PlyCount "96"]
[EventDate "2019.01.02"]
[EventType "tourn"]
[EventCountry "IRL"]
[SourceTitle "playchess.com"]
[Source "ChessBase"]
[SourceQuality "1"]
[TimeControl "5400+30"]

1. c4 {[%emt 0:00:00]} c5 {[%emt 0:05:40]} 2. Nc3 {[%emt 0:00:00]} g6 {[%emt 0:01:18]} 3. g3 {[%emt 0:00:00]} Bg7 {[%emt 0:00:07]} 4. Bg2 {[%emt 0:00:00]} Nc6 {[%emt 0:00:06]} 5. e3 {[%emt 0:02:33]} Nh6 {[%emt 0:00:24]} 6. Nge2 {[%emt 0:00:15]} Nf5 {[%emt 0:00:07]} 7. a3 {[%emt 0:00:20]} d6 {[%emt 0:03:25]} 8. d3 {[%emt 0:00:21]} Rb8 {[%emt 0:03:08]} 9. Rb1 {[%emt 0:00:08]} Bd7 {[%emt 0:04:04]} 10. b4 {[%emt 0:04:06]} b6 {[%emt 0:00:12]} 11. O-O {[%emt 0:00:42]} O-O {[%emt 0:03:17]} 12. b5 {[%emt 0:13:05]} Ne5 {[%emt 0:06:24]} 13. h3 {[%emt 0:00:53]} Bc8 {[%emt 0:00:40]} 14. f4 {[%emt 0:01:36]} Nd7 {[%emt 0:00:25]} 15. e4 {[%emt 0:01:58]} Nxg3 {[%emt 0:01:13]} 16. Nxg3 {[%emt 0:00:59]} Bxc3 {[%emt 0:00:54]} 17. Bb2 {[%emt 0:00:06]} Bxb2 {[%emt 0:02:43]} 18. Rxb2 {[%emt 0:00:04]} e6 {[%emt 0:00:27]} 19. d4 {[%emt 0:08:26]} Qh4 {[%emt 0:04:38]} 20. Kh2 {[%emt 0:00:15]} Bb7 {[%emt 0:01:26]} 21. d5 {[%emt 0:01:29]} exd5 {[%emt 0:04:32]} 22. exd5 {[%emt 0:01:35]} Rbe8 {[%emt 0:02:50]} 23. Ne4 {[%emt 0:01:05]} Qe7 {[%emt 0:09:27]} 24. Rbf2 {[%emt 0:02:52]} Nf6 {[%emt 0:00:27]} 25. Re1 {[%emt 0:00:32]} Nxe4 {[%emt 0:01:27]} 26. Rxe4 {[%emt 0:00:05]} Qh4 {[%emt 0:00:26]} 27. Rfe2 {[%emt 0:00:34]} Rxe4 {[%emt 0:00:39]} 28. Rxe4 {[%emt 0:00:05]} Bc8 {[%emt 0:04:29]} 29. Qf3 {[%emt 0:02:02]} Bf5 {[%emt 0:00:40]} 30. Re3 {[%emt 0:02:51]} Qd8 {[%emt 0:02:34]} 31. Qe2 {[%emt 0:00:20]} Bd7 {[%emt 0:00:09]} 32. Be4 {[%emt 0:07:00]} Re8 {[%emt 0:00:55]} 33. Bd3 {[%emt 0:00:14]} Rxe3 {[%emt 0:04:32]} 34. Qxe3 {[%emt 0:02:12]} Qf6 {[%emt 0:00:02]} 35. Be4 {[%emt 0:01:26]} Kg7 {[%emt 0:03:50]} 36. Bg2 {[%emt 0:03:54]} Bf5 {[%emt 0:00:22]} 37. Kg3 {[%emt 0:01:16]} Kf8 {[%emt 0:00:30]} 38. Bf3 {[%emt 0:00:40]} h5 {[%emt 0:02:23]} 39. h4 {[%emt 0:00:32]} Qa1 {[%emt 0:00:09]} 40. Bg2 {[%emt 0:04:01]} Qd1 {[%emt 0:01:06]} 41. Be4 {[%emt 0:02:24]} Qg4+ {[%emt 0:00:11]} 42. Kf2 {[%emt 0:00:07]} Qxh4+ {[%emt 0:00:08]} 43. Ke2 {[%emt 0:00:08]} Bxe4 {[%emt 0:00:37]} 44. Qxe4 {[%emt 0:00:14]} Qe7 {[%emt 0:00:05]} 45. Ke3 {[%emt 0:00:13]} Qxe4+ {[%emt 0:00:06]} 46. Kxe4 {[%emt 0:00:03]} Ke7 {[%emt 0:00:07]} 47. f5 {[%emt 0:00:04]} g5 {[%emt 0:00:12]} 48. a4 {[%emt 0:00:11]} Kf6 {[%emt 0:00:06]} 0-1